bitfinex/quotes_ETHUSD_20250824
["timestamp","ask_amount","ask_price","bid_price","bid_amount"]
[1756066883423,0.04,4793.4,4792.7,1.607]
[1756066883614,0.04,4793.4,4792.8,5.086]
[1756066883819,0.04,4793.4,4792.7,1.607]
[1756066884015,0.104,4793.0,4792.7,1.607]
[1756066884328,0.04,4793.4,4792.7,1.607]
[1756066884753,0.4399,4793.3,4792.7,1.607]
[1756066885288,0.4399,4793.3,4792.7,6.688]
[1756066885432,0.4399,4793.3,4792.7,1.607]
[1756066886032,0.4399,4793.3,4792.0,5.08]
[1756066886219,0.4399,4793.3,4792.1,5.08]
[1756066886589,0.4399,4793.3,4792.3,2.08666768]
[1756066886855,0.4399,4793.3,4792.2,1.606]
[1756066887031,0.4399,4793.3,4790.2,5.024]
[1756066887032,3.0,4793.1,4789.0,1.606]
[1756066887231,3.0,4792.9,4789.0,1.606]
[1756066887432,30.4399,4793.0,4789.6,2.08784551]
[1756066887433,3.0,4792.7,4789.6,2.08784551]
[1756066887623,3.0,4792.5,4789.2,5.079]
[1756066887822,3.0,4792.3,4790.1,5.118]
[1756066888024,0.4399,4792.8,4790.1,5.118]
[1756066888353,3.0,4792.6,4790.6,2.0873785]
[1756066888664,0.4399,4792.5,4790.2,1.606]
[1756066888849,0.15608839,4793.9,4791.5,3.0]
[1756066889052,0.4399,4794.8,4792.7,2.08646507]
[1756066889277,0.4399,4794.8,4793.2,2.08628125]
[1756066890086,1.606,4795.9,4793.2,2.08628125]
[1756066890264,1e-08,4793.4,4793.3,0.41726417]
[1756066890554,1e-08,4794.3,4794.2,2.08585373]
[1756066890719,1e-08,4794.3,4794.2,10.15885373]
[1756066891121,1e-08,4794.3,4794.2,5.08585373]
[1756066891321,1e-08,4794.3,4794.2,10.15585373]
[1756066891581,1e-08,4794.3,4794.2,5.08585373]
[1756066891857,1e-08,4794.3,4794.2,10.15585373]
[1756066892071,1e-08,4794.3,4794.2,10.15485373]
[1756066892358,1e-08,4794.3,4794.2,2.08585373]
[1756066893576,1e-08,4795.4,4795.3,2.08537526]
[1756066893723,1e-08,4795.4,4795.3,10.15337526]
[1756066894180,1e-08,4795.4,4795.3,11.34307003]
[1756066894375,1e-08,4795.4,4795.3,11.44707003]
[1756066895463,1e-08,4795.4,4795.3,6.38007003]
[1756066895646,1e-08,4795.4,4795.3,11.44407003]
[1756066896180,0.2,4796.6,4795.3,11.44407003]
[1756066896385,0.4399,4799.0,4798.2,2.08411487]
[1756066897238,0.4399,4799.7,4798.2,5.08411487]
[1756066897471,0.04,4800.4,4797.9,3.0]
[1756066897676,0.4799,4800.4,4799.2,2.08367448]
[1756066897880,0.4799,4800.4,4799.0,1.604]
[1756066898036,0.04,4800.4,4797.2,1.604]
[1756066898389,0.04,4802.4,4798.1,16.35971636]
[1756066898586,0.4399,4802.3,4802.1,2.08238951]
[1756066898870,0.4399,4802.2,4800.6,2.08307294]
[1756066899035,0.4399,4802.2,4798.8,2.08385429]
[1756066899239,0.4399,4802.2,4798.7,2.08389772]
[1756066899559,3.0,4802.0,4797.5,5.059]
[1756066899877,3.0,4801.8,4797.3,1.604]
[1756066900035,3.0,4801.6,4796.1,6.702]
[1756066900236,3.0,4801.4,4796.2,2.08498394]
[1756066900470,3.0,4801.2,4796.3,1.44699202]
[1756066900670,3.0,4801.0,4797.1,0.04]
[1756066900869,3.0,4800.8,4799.1,0.04]
[1756066901070,3.0,4800.6,4799.1,0.04]
[1756066901281,3.0,4800.4,4798.1,0.04]
[1756066901482,2.08351648,4799.6,4798.1,0.04]
[1756066901721,3.0,4799.4,4797.1,0.04]
[1756066901869,31.603,4799.5,4797.1,0.04]
[1756066901870,30.0,4799.3,4797.1,0.04]
[1756066902070,3.4399,4799.3,4797.1,0.04]
[1756066902259,3.0,4799.1,4796.1,0.04]
[1756066902584,3.0,4798.9,4796.1,0.04]
[1756066902786,3.0,4798.7,4796.1,0.04]
[1756066902986,2.037,4798.8,4796.1,0.04]
[1756066903172,3.434,4798.6,4796.3,3.0]
[1756066903486,2.08427746,4797.9,4796.1,0.04]
[1756066903660,3.0,4797.7,4796.1,0.04]
[1756066903860,3.0,4797.5,4796.1,0.04]
[1756066904065,3.0,4796.0,4792.3,10.062]
[1756066904264,3.0,4795.0,4792.1,0.04]
[1756066904462,3.0,4794.8,4792.8,2.08643772]
[1756066904662,3.0,4794.6,4792.1,0.04]
[1756066904973,3.0,4794.6,4792.9,2.08639729]
[1756066905175,2.99408874,4794.7,4792.1,0.04]
[1756066905176,2.037,4794.7,4794.5,2.08569894]
[1756066905373,1.603,4794.7,4792.5,2.08659358]
[1756066905587,0.434,4794.6,4792.1,0.04]
[1756066905794,3.0,4794.5,4792.8,2.08645426]
[1756066906086,3.0,4794.3,4792.4,0.004]
[1756066906400,0.104,4793.2,4792.8,2.08642984]
[1756066906563,0.104,4793.2,4792.9,2.0863984]
[1756066906884,0.538,4793.2,4792.5,2.08656445]
[1756066907192,0.538,4793.2,4792.4,0.004]
[1756066908104,33.538,4793.2,4792.4,0.004]
[1756066908513,33.538,4793.2,4792.6,0.004]
[1756066909115,0.538,4793.2,4792.9,2.08641014]
[1756066909280,0.538,4793.2,4792.7,2.08647003]
[1756066909479,0.538,4793.2,4792.6,0.004]
[1756066909791,0.104,4793.2,4793.0,2.0863692]
[1756066909985,0.104,4793.4,4793.2,4.1725778]
[1756066910314,0.104,4793.4,4793.2,2.0862889]
[1756066911304,0.434,4793.3,4793.2,2.0862889]
[1756066911515,2.038,4793.3,4793.1,0.04]
[1756066911679,0.7187,4793.2,4793.1,0.04]
[1756066911884,0.434,4793.2,4793.1,0.04]
[1756066912084,1.604,4793.6,4793.1,0.04]
[1756066912293,0.434,4793.2,4793.1,0.04]
[1756066912475,0.434,4793.2,4792.6,0.004]
[1756066912815,2.08659363,4792.5,4790.1,2.12761087]
[1756066912985,3.0,4792.3,4790.3,2.08754958]
[1756066913186,3.0,4792.1,4790.1,2.12759867]
[1756066913388,3.0,4791.9,4790.1,0.04]
[1756066913600,5.044,4791.8,4790.1,0.04]
[1756066913978,5.477,4792.0,4791.5,2.08700372]
[1756066914245,5.477,4792.0,4791.2,2.08715979]
[1756066914246,1.604,4792.4,4791.2,2.08715979]
[1756066914387,0.32657094,4793.8,4791.2,2.08715979]
[1756066914594,5.042,4793.8,4791.2,0.21271598]
[1756066914785,3.434,4793.7,4790.4,7.10049368]
[1756066914986,3.434,4793.7,4791.2,2.08715979]
[1756066915207,3.434,4793.7,4792.3,2.08664118]
[1756066915412,0.434,4793.7,4792.9,2.0864123]
[1756066915613,0.434,4793.7,4790.5,3.3286]
[1756066915914,0.434,4793.7,4791.4,2.08706098]
[1756066916130,0.434,4793.7,4790.9,3.0]
[1756066916422,5.042,4793.6,4791.1,0.344]
[1756066916582,5.042,4793.6,4791.1,0.04]
[1756066916788,1.604,4794.3,4791.2,2.08715979]
[1756066916985,0.04,4794.4,4794.2,2.08583447]
[1756066917794,0.04,4794.4,4792.0,2.08681135]
[1756066917998,0.04,4794.4,4792.1,0.20868114]
[1756066918198,0.04,4794.4,4794.2,2.08581851]
[1756066918521,0.04,4794.4,4792.2,2.08672426]
[1756066918704,0.04,4794.4,4794.3,2.08581023]
[1756066920226,0.474,4794.4,4791.7,2.08690742]
[1756066920427,0.474,4794.4,4793.6,2.08610665]
[1756066920428,1.604,4794.3,4793.6,2.08610665]
[1756066920636,0.2078,4794.2,4791.4,3.0]
[1756066920838,5.037,4794.1,4792.4,2.08661112]
[1756066921039,0.434,4794.0,4791.2,2.08715979]
[1756066921242,3.0,4793.8,4791.2,2.08715979]
[1756066921552,3.0,4793.8,4791.1,0.04]
[1756066921553,2.08628585,4793.3,4791.1,0.04]
[1756066921856,0.104,4791.2,4791.1,0.04]
[1756066922061,6.744,4791.2,4791.1,0.04]
[1756066922356,7.178,4791.2,4790.1,0.04]
[1756066922559,7.178,4791.2,4788.1,0.04]
[1756066922560,2.08734502,4790.8,4788.1,0.04]
[1756066922703,3.0,4790.6,4788.1,0.04]
[1756066922904,30.43851003,4790.5,4788.7,0.1048]
[1756066923118,30.43851003,4790.5,4788.1,0.04]
[1756066923119,0.1048,4789.2,4788.1,0.04]
[1756066923314,1.7088,4789.2,4789.0,2.0881097]
[1756066923572,1.604,4790.2,4790.1,2.08763908]
[1756066923717,2.1984,4790.2,4788.1,0.04]
[1756066924068,0.104,4789.9,4788.1,0.1448]
[1756066924363,0.1048,4789.2,4789.0,2.08807771]
[1756066924766,0.1048,4789.2,4788.1,0.04]
[1756066924913,0.1048,4789.2,4788.5,2.08833146]
[1756066925114,0.5388,4789.2,4788.1,0.04]
[1756066925356,5.5718,4789.2,4788.1,0.04]
[1756066925527,6.12898,4789.2,4788.1,0.04]
[1756066925734,9.12898,4789.2,4788.1,0.04]
[1756066926121,0.5388,4789.2,4788.6,0.004]
[1756066926321,5.032,4789.4,4789.1,0.044]
[1756066926521,5.031,4789.9,4789.2,2.0880314]
[1756066926844,5.031,4789.9,4789.1,0.044]
[1756066927290,1.604,4790.2,4789.7,2.08777661]
[1756066927493,5.031,4790.0,4789.1,0.044]
[1756066927789,1.604,4790.2,4789.1,0.044]
[1756066927993,1.604,4790.2,4790.0,2.0876642]
[1756066928312,1.605,4791.1,4790.9,2.08725691]
[1756066928455,1.605,4791.1,4790.0,0.20876642]
[1756066928456,6.635,4792.0,4790.0,0.20876642]
[1756066928664,6.635,4792.0,4789.2,0.4086]
[1756066928665,2.039,4792.0,4789.2,0.4086]
[1756066928991,5.029,4791.9,4791.4,2.08703223]
[1756066929195,5.029,4791.9,4789.4,2.08794421]
[1756066929401,1.605,4792.0,4789.7,3.0]
[1756066929687,1.605,4792.0,4791.8,2.08689054]
[1756066930054,1.605,4793.0,4790.9,2.08729048]
[1756066930248,1.605,4793.0,4791.0,0.75832847]
[1756066930453,5.027,4792.3,4789.6,0.4086]
[1756066930671,0.474,4792.4,4789.8,3.0]
[1756066930876,5.501,4792.4,4791.7,2.08690897]
[1756066931094,0.04,4792.4,4789.9,3.0]
[1756066931305,0.04,4792.4,4792.2,2.08669446]
[1756066933368,0.04,4792.4,4790.6,2.0136]
[1756066933667,0.04,4792.4,4792.3,2.08668071]
[1756066934016,0.04,4792.4,4791.1,2.08720335]
[1756066934221,0.04,4792.4,4791.2,0.20872033]
[1756066934499,0.04,4792.4,4792.3,2.08668071]
[1756066935004,0.04,4792.4,4790.4,2.08748228]
[1756066935178,0.04,4792.4,4790.7,2.08737762]
[1756066935377,0.04,4792.4,4790.8,3.0]
[1756066935571,0.04,4792.4,4790.9,0.96923776]
[1756066935764,0.04,4792.4,4792.2,3.0]
[1756066935963,0.04,4793.4,4792.3,0.4086]
[1756066936163,0.04,4793.4,4793.1,2.08631781]
[1756066936378,0.04,4793.4,4793.3,2.08624538]
[1756066936998,0.5067,4793.4,4792.1,2.08673449]
[1756066937201,0.5067,4793.4,4793.1,2.08628913]
[1756066937502,0.5067,4793.4,4791.0,1.605]
[1756066937503,0.4667,4793.3,4791.0,1.605]
[1756066937677,0.4667,4793.3,4792.0,2.08677049]
[1756066937881,0.4667,4793.3,4791.0,1.605]
[1756066937882,1.605,4793.2,4791.0,1.605]
[1756066938088,0.4667,4793.1,4791.0,1.605]
[1756066938273,3.0,4793.0,4790.4,2.08750835]
[1756066938473,3.0,4793.0,4790.1,0.04]
[1756066938474,0.91277633,4792.9,4790.1,0.04]
[1756066938711,3.0,4792.7,4790.1,0.04]
[1756066939023,0.53945545,4792.3,4790.9,2.08724962]
[1756066939183,1.633293,4792.6,4790.2,2.0875955]
[1756066939184,0.44607633,4792.4,4790.2,2.0875955]
[1756066939370,0.4667,4792.6,4790.1,0.04]
[1756066939711,0.4667,4792.3,4790.1,0.04]
[1756066939870,0.35829331,4792.2,4790.1,0.04]
[1756066940070,1.605,4792.1,4790.4,2.08747415]
[1756066940309,0.4667,4792.9,4790.9,2.08729048]
[1756066940471,0.4667,4792.9,4790.3,3.0]
[1756066940672,0.4667,4792.9,4790.2,2.0136]
[1756066940989,0.4667,4792.9,4790.2,1.605]
[1756066941200,0.4667,4792.9,4790.4,2.08750835]
[1756066941369,0.4667,4792.9,4790.2,1.605]
[1756066941370,35.08646302,4792.8,4790.1,0.04]
[1756066941567,0.91293329,4792.7,4790.1,0.04]
[1756066941773,0.4667,4792.6,4790.2,2.0875955]
[1756066942075,0.4667,4792.6,4791.3,2.08708455]
[1756066942076,1.605,4792.5,4791.3,2.08708455]
[1756066942382,2.05123329,4792.5,4791.1,2.08720335]
[1756066942576,2.05123329,4792.5,4790.3,2.08755192]
[1756066942577,1.605,4792.5,4790.3,2.08755192]
[1756066942803,1.605,4792.5,4791.8,2.08688671]
[1756066943002,1.605,4792.5,4792.0,2.08678251]
[1756066943190,2.0717,4792.5,4790.8,2.08733405]
[1756066943394,1.605,4792.5,4790.8,0.87797552]
[1756066943594,1.605,4792.5,4791.7,2.08693637]
[1756066943780,0.4667,4792.4,4790.5,1.605]
[1756066944301,0.4667,4792.4,4790.1,0.044]
[1756066944504,0.001,4792.6,4790.1,0.044]
[1756066944505,0.001,4792.6,4792.5,2.08659363]
[1756066944704,1e-08,4792.6,4792.5,3.69159363]
[1756066944904,1e-08,4792.6,4792.5,8.17861962]
[1756066945111,1e-08,4792.6,4792.5,5.17861962]
[1756066946702,1e-08,4792.6,4792.5,4.77001962]
[1756066946928,1e-08,4792.6,4792.5,5.17861962]
[1756066947101,1e-08,4792.6,4792.5,5.28261962]
[1756066948194,1e-08,4793.4,4793.3,2.08624538]
[1756066948396,1e-08,4793.4,4793.3,7.50350171]
[1756066948597,1e-08,4793.4,4793.3,7.60750171]
[1756066948839,1e-08,4793.4,4793.3,2.19024538]
[1756066949037,1e-08,4793.4,4793.3,2.08624538]
[1756066950130,0.04,4794.4,4794.3,2.08581023]
[1756066951493,0.5067,4794.4,4794.2,2.08582333]
[1756066951692,0.5067,4794.4,4793.8,1.604]
[1756066951693,0.4667,4794.3,4793.8,1.604]
[1756066952001,0.4667,4794.2,4794.0,2.085899]
[1756066952201,0.4667,4794.1,4793.8,3.69000749]
[1756066952391,0.4667,4794.0,4793.6,2.08609996]
[1756066952591,0.4667,4793.9,4793.8,2.08600098]
[1756066952792,0.04,4794.4,4794.3,2.08581023]
[1756066953741,0.04,4794.4,4794.3,2.50298018]
[1756066954056,0.04,4794.4,4794.3,5.50298018]
[1756066954402,0.04,4794.4,4794.3,10.07681023]
[1756066954602,0.04,4794.4,4794.3,5.08581023]
[1756066955435,0.04,4794.4,4794.3,2.08581023]
[1756066956905,1e-08,4794.4,4794.3,5.08581023]
[1756066957241,0.43230001,4795.6,4794.2,3.0]
[1756066957413,0.43230001,4795.6,4794.7,2.08562277]
[1756066957614,0.43230001,4795.6,4794.3,4.985]
[1756066957815,0.43230001,4795.6,4794.5,2.08568525]
[1756066958016,0.43230001,4795.6,4794.3,4.985]
[1756066958505,0.43230001,4795.6,4794.7,2.08563259]
[1756066958916,0.43230001,4795.6,4794.9,2.08553268]
[1756066959132,0.104,4795.0,4794.3,4.985]
[1756066959407,0.04,4796.4,4796.1,2.08500909]
[1756066959629,0.04,4796.4,4796.2,4.981]
[1756066959833,0.04,4796.4,4796.3,2.08494047]
[1756066960033,0.003,4797.9,4796.4,3.0]
[1756066960248,1e-08,4797.9,4797.0,2.08463623]
[1756066960418,1e-08,4797.9,4796.8,2.08470776]
[1756066960419,1e-08,4798.4,4798.3,2.08407144]
[1756066960626,1e-08,4798.4,4798.3,10.06307144]
[1756066961353,1e-08,4798.4,4798.3,7.06207144]
[1756066961951,1e-08,4798.4,4798.3,10.49637144]
[1756066962153,0.46670001,4798.4,4795.4,0.4343]
[1756066962353,1e-08,4798.4,4795.5,4.12356695]
[1756066962518,1e-08,4798.4,4795.6,5.4506567]
[1756066962715,1e-08,4798.4,4798.3,2.08407144]
[1756066962953,1e-08,4798.4,4798.3,8.66307144]
[1756066963545,1e-08,4798.4,4798.3,8.66107144]
[1756066964453,1e-08,4798.4,4798.3,11.66107144]
[1756066964759,1e-08,4798.4,4798.3,10.03559316]
[1756066964954,1e-08,4798.4,4798.3,3.67607144]
[1756066965128,1e-08,4798.4,4798.3,11.64607144]
[1756066965452,1e-08,4798.4,4798.3,12.08907144]
[1756066965652,0.04,4800.4,4799.8,2.0834107]
[1756066965862,0.04,4800.4,4800.3,2.08320313]
[1756066967254,0.04,4801.4,4801.2,2.08281263]
[1756066967456,0.04,4801.4,4800.1,7.05127693]
[1756066967457,0.04,4801.4,4801.3,2.08276924]
[1756066968123,0.04,4801.4,4801.3,2.07976924]
[1756066968456,0.04,4801.4,4801.3,7.04376924]
[1756066968627,0.04,4801.4,4801.3,2.07976924]
[1756066968824,0.4559,4804.1,4801.4,2.08272587]
[1756066969142,0.4559,4804.1,4803.3,2.08190202]
[1756066969329,1.602,4805.1,4803.3,2.08190202]
[1756066969527,0.4559,4804.1,4803.3,2.08190202]
[1756066969831,0.4959,4803.4,4801.8,2.08253586]
[1756066970030,0.4959,4803.4,4800.7,2.08301763]
[1756066970031,0.104,4801.3,4801.2,2.08281263]
[1756066970256,0.4559,4802.4,4801.3,2.08276924]
[1756066970459,0.4559,4802.4,4801.3,4.959]
[1756066970630,0.04,4803.4,4801.3,4.959]
[1756066970631,0.4559,4802.9,4801.3,4.959]
[1756066971356,0.4559,4802.9,4802.2,2.08233763]
[1756066971560,0.04,4803.4,4802.8,2.08210753]
[1756066971724,0.04,4803.4,4803.3,2.18590202]
[1756066972520,0.04,4803.4,4803.3,2.08190202]
[1756066974663,0.04,4804.4,4803.3,0.443]
[1756066974831,0.04,4804.4,4803.5,3.0]
[1756066975158,0.04,4804.4,4803.7,2.08172866]
[1756066975455,0.04,4804.4,4803.6,1.602]
[1756066975693,0.04,4804.4,4803.8,2.08168533]
[1756066975844,0.04,4804.4,4804.1,2.08154659]
[1756066976175,0.04,4804.4,4803.8,7.0306837]
[1756066976362,0.04,4804.4,4803.6,1.602]
[1756066976363,0.04,4804.4,4803.6,6.55]
[1756066976562,0.04,4804.4,4803.8,2.08168533]
[1756066976764,0.04,4804.4,4804.3,2.08146868]
[1756066976979,0.04,4804.4,4804.3,7.02946868]
[1756066977477,0.04,4804.4,4804.3,2.08146868]
[1756066977866,0.4959,4804.4,4803.6,6.548]
[1756066978048,0.04,4804.4,4803.7,2.08172866]
[1756066978387,0.04,4804.4,4803.6,6.548]
[1756066978683,0.041,4804.4,4803.6,1.602]
[1756066978986,0.4559,4804.3,4803.8,2.08165216]
[1756066979188,0.4559,4804.3,4804.1,2.08154465]
[1756066979353,0.041,4804.4,4803.6,4.944]
[1756066979546,0.041,4804.4,4803.1,2.08196847]
[1756066979743,1.5979,4805.2,4803.2,4.942]
[1756066979944,0.16379,4805.1,4802.7,5.08216211]
[1756066980177,0.16379,4805.1,4803.3,2.08186251]
[1756066980385,0.16379,4805.1,4803.4,4.941]
[1756066980746,1.5979,4805.2,4803.4,4.941]
[1756066981174,1.5979,4805.2,4802.6,1.601]
[1756066981342,1.5979,4805.2,4803.2,2.08194536]
[1756066981548,1.5979,4805.2,4804.1,2.0815544]
[1756066981856,1.5979,4805.2,4802.6,3.68320389]
[1756066981857,0.041,4805.4,4804.5,2.08136955]
[1756066982058,0.041,4805.4,4804.2,4.938]
[1756066982378,0.041,4805.4,4804.3,4.937]
[1756066982886,0.041,4805.4,4804.4,4.936]
[1756066983073,0.041,4805.4,4804.4,7.01741231]
[1756066983463,0.041,4805.4,4804.4,4.936]
[1756066983673,0.041,4805.4,4804.5,4.935]
[1756066983883,0.104,4805.3,4805.2,2.08107883]
[1756066984379,0.104,4805.3,4804.9,4.933]
[1756066984558,0.104,4805.3,4804.8,2.08124413]
[1756066984758,0.104,4804.9,4804.1,1.601]
[1756066985156,0.104,4804.9,4804.4,2.08142536]
[1756066985357,0.104,4804.9,4804.6,2.08132266]
[1756066986094,0.041,4805.4,4805.3,2.08103552]
[1756066986255,0.145,4805.4,4805.3,7.01003552]
[1756066986459,0.145,4805.4,4805.3,2.08103552]
[1756066986662,0.4969,4805.4,4804.7,2.08128552]
[1756066986926,0.4969,4805.4,4804.5,2.08138203]
[1756066987092,0.4969,4805.4,4804.4,4.929]
[1756066987387,0.4969,4805.4,4804.5,4.928]
[1756066987612,0.4969,4805.4,4804.3,1.0]
[1756066988760,0.25777775,4805.3,4804.3,1.0]
[1756066989006,0.4559,4805.2,4804.3,1.0]
[1756066989315,0.041,4805.4,4804.3,1.0]
[1756066989316,0.041,4805.4,4804.4,3.0]
[1756066989459,0.041,4805.4,4804.5,1.601]
[1756066989659,0.041,4805.4,4804.6,3.0]
[1756066989881,0.041,4805.4,4805.3,2.08103552]
[1756066990162,0.041,4805.4,4805.3,5.08103552]
[1756066991104,0.041,4805.4,4805.3,10.00203552]
[1756066991317,0.041,4805.4,4805.3,2.08103552]
[1756066991472,0.041,4805.4,4805.3,7.00203552]
[1756066992907,0.041,4805.4,4805.3,10.00203552]
[1756066993077,0.041,4805.4,4805.3,5.55573552]
[1756066993411,0.041,4805.4,4805.3,10.47173552]
[1756066993610,0.041,4805.4,4805.3,2.08103552]
[1756066993819,0.041,4805.4,4804.5,2.0757]
[1756066993820,0.041,4805.4,4804.5,1.601]
[1756066994016,0.041,4805.4,4804.6,6.9963038]
[1756066994181,0.041,4805.4,4804.8,2.08125208]
[1756066994386,0.041,4805.4,4805.3,2.08103552]
[1756066994583,0.041,4805.4,4805.3,7.18753757]
[1756066994780,0.04,4807.4,4805.4,3.0]
[1756066994979,0.04,4807.4,4805.6,3.0]
[1756066995215,0.04,4807.4,4807.3,2.08016974]
[1756066995525,0.04,4807.4,4807.3,3.87267179]
[1756066995723,0.04,4807.4,4807.3,8.59316974]
[1756066995892,0.04,4807.4,4807.3,3.68016974]
[1756066996279,0.04,4807.4,4807.3,8.59116974]
[1756066996730,0.144,4807.4,4807.3,8.59116974]
[1756066997097,0.144,4807.4,4807.3,3.68016974]
[1756066997533,0.144,4807.4,4807.3,6.508]
[1756066997682,0.04,4808.4,4807.4,3.0]
[1756066997883,0.04,4808.4,4808.3,2.07973712]
[1756066998132,0.04,4808.4,4808.3,6.98773712]
[1756066998297,0.04,4808.4,4808.3,6.98673712]
[1756066998642,0.04,4808.4,4808.3,2.27200836]
[1756066998796,0.04,4808.4,4808.3,2.07973712]
[1756066999128,0.04,4808.4,4808.3,6.98573712]
[1756066999434,0.04,4808.4,4808.3,7.46043712]
[1756066999910,0.04,4808.4,4807.3,1.6]
[1756067000216,0.04,4808.4,4807.4,6.98312647]
[1756067000420,0.04,4808.4,4807.8,2.0799429]
[1756067000616,0.04,4808.4,4807.3,1.6]
[1756067000617,0.04,4808.4,4807.9,4.903]
[1756067000784,0.04,4808.4,4808.0,4.903]
[1756067001183,0.04,4808.4,4807.3,1.6]
[1756067001692,0.04,4808.4,4807.5,3.0]
[1756067001884,0.04,4808.4,4808.1,2.07980801]
[1756067002086,0.04,4808.4,4808.3,2.07973712]
[1756067002315,0.04,4808.4,4808.3,6.97873712]
[1756067002520,0.04,4808.4,4808.3,2.07973712]
[1756067002829,0.04,4808.4,4808.3,6.97773712]
[1756067002986,0.04,4808.4,4806.4,2.08055201]
[1756067003187,0.04,4808.4,4805.3,0.15432747]
[1756067003188,0.04,4808.4,4807.8,2.0799501]
[1756067003418,0.3926,4808.8,4807.5,3.0]
[1756067003632,0.3926,4808.8,4807.6,4.896]
[1756067003921,0.3926,4808.8,4806.6,0.4747]
[1756067004084,0.3926,4808.8,4808.0,2.07986195]
[1756067004286,0.3926,4808.8,4806.9,3.0]
[1756067004487,0.03983,4809.0,4806.9,3.0]
[1756067004682,0.03983,4809.0,4807.8,2.07991513]
[1756067004929,0.03983,4809.0,4807.4,2.08012647]
[1756067005220,0.03983,4809.0,4807.5,4.893]
[1756067005221,0.55899364,4808.7,4807.5,4.893]
[1756067005424,0.55899364,4808.4,4806.4,1.599]
[1756067005747,1.07422423,4808.6,4804.5,2.08135634]
[1756067005748,0.55899364,4807.2,4805.5,1.599]
[1756067005911,1.00416655,4807.1,4806.1,0.04]
[1756067006112,1.00416655,4807.0,4806.1,0.04]
[1756067006335,0.44517291,4806.9,4806.1,0.04]
[1756067006541,0.55899364,4807.1,4806.1,0.04]
[1756067006744,0.44517291,4807.7,4806.1,0.04]
[1756067007043,0.44517291,4808.1,4806.1,0.5147]
[1756067007213,1.00416655,4808.4,4806.1,0.5147]
[1756067007410,0.16332179,4808.3,4806.1,0.5147]
[1756067007715,0.6084947,4808.3,4806.8,2.08036685]
[1756067007906,0.55899364,4808.0,4806.4,4.888]
[1756067008106,0.55899364,4807.7,4806.4,4.888]
[1756067008342,0.44517291,4808.4,4806.5,4.888]
[1756067008506,0.104,4807.8,4807.0,0.104]
[1756067008708,0.104,4807.5,4806.8,0.104]
[1756067008913,0.104,4807.5,4806.6,1.6]
[1756067008914,0.104,4807.5,4806.6,1.704]
[1756067009239,0.104,4807.5,4806.8,2.08034793]
[1756067009542,0.104,4807.5,4807.4,2.08012647]
[1756067010651,0.44560207,4808.9,4807.4,0.41603235]
[1756067010818,0.4526,4808.6,4806.7,3.0]
[1756067011149,0.44560207,4808.5,4806.7,3.0]
[1756067011347,0.76034667,4809.0,4806.8,0.4747]
[1756067011348,0.03983,4809.0,4806.8,0.4747]
[1756067011529,0.03983,4809.0,4806.9,0.53020025]
[1756067011932,0.04,4809.4,4807.0,2.42818309]
[1756067012109,0.04,4809.4,4807.1,2.6807]
[1756067012313,1.6,4810.0,4808.3,17.00810608]
[1756067012612,1.6,4810.0,4809.9,2.0790453]
[1756067012841,0.04,4810.4,4809.9,2.76164983]
[1756067013049,0.04,4810.4,4810.3,2.07887241]
[1756067013209,0.04,4812.4,4810.3,2.3364297]
[1756067013547,0.04,4812.4,4810.4,0.4747]
[1756067013849,0.04,4812.4,4810.3,2.07887241]
[1756067013850,0.4526,4811.6,4810.3,4.878]
[1756067014017,0.44462821,4812.3,4810.3,0.4747]
[1756067014213,0.04,4812.4,4810.3,0.4747]
[1756067014545,0.04,4812.4,4810.0,1.6]
[1756067014546,0.55733762,4811.9,4810.0,1.6]
[1756067014762,0.4526,4811.8,4810.0,1.6]
[1756067015057,1.00196583,4812.3,4810.0,1.6]
[1756067015223,0.17624825,4812.2,4810.1,0.4747]
[1756067015427,0.04,4812.4,4810.1,0.4747]
[1756067015735,0.04,4812.4,4812.2,2.07801925]
[1756067015940,0.04,4812.4,4812.3,0.4747]
[1756067016140,0.04,4812.4,4812.2,2.07803372]
[1756067016309,0.04,4812.4,4811.7,1.599]
[1756067016513,0.04,4812.4,4812.2,2.0780386]
[1756067016741,0.04,4812.4,4811.9,4.872]
[1756067017313,0.04,4812.4,4811.7,1.599]
[1756067017841,0.04,4812.4,4812.3,2.07800843]
[1756067018011,0.04,4812.4,4811.7,1.599]
[1756067018012,0.04,4812.4,4812.0,4.869]
[1756067018211,1e-08,4812.4,4812.1,5.0780948]
[1756067018462,1e-08,4812.4,4812.3,2.07800843]
[1756067018956,1e-08,4812.4,4811.7,1.599]
[1756067019521,1e-08,4812.4,4812.3,2.07800843]
[1756067019911,1e-08,4812.4,4812.3,2.55270843]
[1756067020108,1e-08,4812.4,4812.3,7.41770843]
[1756067020314,1e-08,4812.4,4812.3,8.36728759]
[1756067020612,1e-08,4812.4,4812.3,3.60628759]
[1756067020839,1e-08,4812.4,4812.3,7.52070843]
[1756067021138,1e-08,4812.4,4811.7,6.462]
[1756067021365,1e-08,4812.4,4811.8,2.07822436]
[1756067021567,1e-08,4812.4,4812.3,2.07800843]